fUST/lending_fUST_20240924
["ID","MTS","AMOUNT","RATE_DAILY","PERIOD"]
[339062689,1727185875635,-500.0,0.00029041,7]
[339062690,1727185875645,-1161.23088,0.00029041,7]
[339062691,1727185875655,-325.818599,0.00029041,7]
[339062692,1727185875664,-646.22984545,0.00029041,7]
[339062693,1727185875673,-500.0,0.00029041,7]
[339062694,1727185875682,-1161.23088,0.00029041,7]
[339062695,1727185875691,-838.89,0.00029041,7]
[339062696,1727185875701,-325.818599,0.00029041,7]
[339062697,1727185875710,-500.0,0.00029041,7]
[339062698,1727185875719,-928.12,0.00029041,7]
[339062699,1727185875904,-500.0,0.00029041,7]
[339062700,1727185875918,-588.89,0.00029041,7]
[339062701,1727185875927,-248.51703124,0.00029041,7]
[339062702,1727185875936,-1019.76,0.00029041,7]
[339062703,1727185875946,-324.20641,0.00029041,7]
[339062704,1727185875955,-500.0,0.00029041,7]
[339062705,1727185875964,-324.20642,0.00029041,7]
[339062706,1727185875974,-701.67,0.00029041,7]
[339062707,1727185875983,-500.0,0.00029041,7]
[339062708,1727185875993,-580.0,0.000291,120]
[339062709,1727185876002,-6692.3739639,0.000292,2]
[339062710,1727185876011,-1363.7,0.00029298,4]
[339062711,1727185876020,-393.77,0.000293,14]
[339062712,1727185876029,-580.0,0.000293,120]
[339062713,1727185876040,-150.0,0.00029314,2]
[339062714,1727185876049,-500.0,0.00029315,7]
[339062715,1727185876058,-500.0,0.00029315,7]
[339062716,1727185876067,-786.36,0.00029315,7]
[339062717,1727185876076,-500.0,0.00029315,7]
[339062718,1727185876085,-822.91,0.00029315,7]
[339062719,1727185876095,-664.95,0.00029315,7]
[339062720,1727185876104,-288.72914509,0.00029315,7]
[339062721,1727185876113,-720.13,0.00029315,7]
[339062722,1727185876122,-151.0,0.00029315,7]
[339062723,1727185876131,-151.0,0.00029315,7]
[339062724,1727185876140,-637.03,0.00029315,7]
[339062725,1727185876149,-856.26,0.00029315,7]
[339062726,1727185876158,-500.0,0.00029315,7]
[339062727,1727185876167,-156.178292,0.00029315,7]
[339062728,1727185876176,-1894.40478,0.00029315,7]
[339062729,1727185876185,-151.0,0.00029315,7]
[339062730,1727185876194,-1894.40478,0.00029315,7]
[339062731,1727185876204,-156.178292,0.00029315,7]
[339062733,1727185876214,-160.647626,0.00029315,7]
[339062734,1727185876223,-500.0,0.00029315,7]
[339062735,1727185876232,-528.4,0.00029315,7]
[339062736,1727185876242,-500.0,0.00029315,7]
[339062737,1727185876252,-500.0,0.00029315,7]
[339062738,1727185876261,-500.0,0.00029315,7]
[339062739,1727185876270,-500.0,0.00029315,7]
[339062740,1727185876279,-500.0,0.00029315,7]
[339062741,1727185876291,-500.0,0.00029315,7]
[339062742,1727185876300,-550.65,0.00029315,7]
[339062743,1727185876309,-475.43999789,0.00029315,7]
[339062744,1727185876318,-500.0,0.00029315,7]
[339062745,1727185876328,-511.65148707,0.00029315,7]
[339062746,1727185876337,-500.0,0.00029315,7]
[339062747,1727185876347,-500.0,0.00029315,2]
[339062748,1727185876357,-500.0,0.00029315,7]
[339062749,1727185876366,-500.0,0.00029315,7]
[339062750,1727185876375,-500.0,0.00029315,7]
[339062751,1727185876384,-574.18,0.00029315,7]
[339062752,1727185876394,-500.0,0.00029315,7]
[339062753,1727185876403,-500.0,0.00029315,7]
[339062754,1727185876413,-536.26,0.00029315,7]
[339062755,1727185876424,-151.0,0.00029315,7]
[339062756,1727185876432,-151.0,0.00029315,7]
[339062757,1727185876442,-779.29,0.00029315,7]
[339062758,1727185876451,-500.0,0.00029315,7]
[339062759,1727185876460,-500.0,0.00029315,7]
[339062760,1727185876469,-500.0,0.00029315,7]
[339062761,1727185876479,-500.0,0.00029315,7]
[339062762,1727185876488,-981.24,0.00029315,7]
[339062763,1727185876497,-500.0,0.00029315,7]
[339062764,1727185876506,-500.0,0.00029315,7]
[339062765,1727185876515,-500.0,0.00029315,7]
[339062766,1727185876524,-668.98,0.00029315,7]
[339062767,1727185876534,-667.57,0.00029315,7]
[339062768,1727185876543,-1224.72,0.00029315,7]
[339062769,1727185876552,-500.0,0.00029315,7]
[339062770,1727185876562,-151.0,0.00029315,7]
[339062771,1727185876571,-846.35,0.00029315,7]
[339062772,1727185876580,-151.0,0.00029315,7]
[339062773,1727185876589,-523.09,0.00029315,7]
[339062774,1727185876598,-500.0,0.00029315,7]
[339062775,1727185876608,-832.28,0.00029315,2]
[339062776,1727185876617,-539.78,0.00029315,7]
[339062777,1727185876626,-500.0,0.00029315,7]
[339062778,1727185876636,-500.0,0.00029315,7]
[339062779,1727185876645,-500.0,0.00029315,7]
[339062780,1727185876654,-834.7,0.00029315,7]
[339062781,1727185876664,-151.0,0.00029315,7]
[339062782,1727185876673,-882.2,0.00029315,7]
[339062783,1727185876682,-222.459046,0.00029315,7]
[339062784,1727185876693,-222.459046,0.00029315,7]
[339062785,1727185876702,-151.0,0.00029315,7]
[339062786,1727185876712,-151.0,0.00029315,7]
[339062787,1727185876721,-700.78,0.00029315,7]
[339062788,1727185876731,-923.88,0.00029315,7]
[339062789,1727185876740,-151.0,0.00029315,7]
[339062790,1727185876749,-500.0,0.00029315,7]
[339062791,1727185876758,-500.0,0.00029315,7]
[339062792,1727185876768,-500.0,0.00029315,7]
[339062793,1727185876778,-500.0,0.00029315,7]
[339062794,1727185876793,-500.0,0.00029315,7]
[339062795,1727185876807,-500.0,0.00029315,7]
[339062796,1727185876817,-699.55,0.00029315,7]
[339062797,1727185876827,-273.47033131,0.00029315,7]
[339062798,1727185876837,-500.0,0.00029315,7]
[339062799,1727185876847,-151.0,0.00029315,7]
[339062800,1727185876856,-151.0,0.00029315,7]
[339062801,1727185876866,-500.0,0.00029315,2]
[339062802,1727185876875,-500.0,0.00029315,7]
[339062803,1727185876886,-949.76,0.00029315,7]
[339062804,1727185876895,-500.0,0.00029315,7]
[339062805,1727185876905,-500.0,0.00029315,7]
[339062806,1727185876915,-603.71,0.00029315,7]
[339062807,1727185876924,-300.133387,0.00029315,7]
[339062808,1727185876934,-337.64773458,0.00029315,7]
[339062809,1727185876944,-500.0,0.00029315,7]
[339062810,1727185876953,-683.94,0.00029315,7]
[339062811,1727185876963,-1000.0,0.00029315,7]
[339062812,1727185876973,-940.34,0.00029315,7]
[339062813,1727185876982,-500.0,0.00029315,7]
[339062814,1727185876992,-154.219427,0.00029315,7]
[339062815,1727185877001,-797.23,0.00029315,7]
[339062816,1727185877010,-354.51,0.00029315,7]
[339062817,1727185877020,-500.0,0.00029315,7]
[339062818,1727185877030,-523.77,0.00029315,7]
[339062819,1727185877046,-154.219427,0.00029315,7]
[339062820,1727185877056,-500.0,0.00029315,7]
[339062821,1727185877066,-634.21,0.00029315,7]
[339062822,1727185877076,-151.0,0.00029315,7]
[339062823,1727185877086,-500.0,0.00029315,7]
[339062824,1727185877096,-500.0,0.00029315,7]
[339062825,1727185877105,-500.0,0.00029315,7]
[339062826,1727185877115,-151.0,0.00029315,7]
[339062827,1727185877124,-500.0,0.00029315,7]
[339062828,1727185877135,-500.0,0.00029315,7]
[339062829,1727185877144,-151.0,0.00029315,7]
[339062830,1727185877155,-500.0,0.00029315,7]
[339062831,1727185877164,-500.0,0.00029315,7]
[339062832,1727185877174,-322.523896,0.00029315,7]
[339062833,1727185877183,-322.523896,0.00029315,7]
[339062834,1727185877193,-774.11,0.00029315,7]
[339062835,1727185877203,-500.0,0.00029315,7]
[339062836,1727185877215,-500.0,0.00029315,7]
[339062837,1727185877231,-532.41,0.00029315,7]
[339062838,1727185877241,-519.04,0.00029315,7]
[339062839,1727185877251,-994.06,0.00029315,7]
[339062840,1727185877260,-751.74,0.00029315,7]
[339062841,1727185877271,-641.08,0.00029315,7]
[339062842,1727185877280,-468.39927681,0.00029315,7]
[339062843,1727185877293,-810.17,0.00029315,2]
[339062844,1727185877302,-922.97,0.00029315,7]
[339062845,1727185877311,-699.038868,0.00029315,7]
[339062846,1727185877321,-500.0,0.00029315,7]
[339062847,1727185877330,-699.038868,0.00029315,7]
[339062848,1727185877340,-1474.2,0.00029315,7]
[339062849,1727185877352,-675.51,0.00029315,7]
[339062850,1727185877363,-151.0,0.00029315,7]
[339062851,1727185877373,-930.14,0.00029315,7]
[339062852,1727185877383,-623.3,0.00029315,7]
[339062853,1727185877395,-500.0,0.00029315,7]
[339062854,1727185877405,-500.0,0.00029315,7]
[339062855,1727185877414,-525.278445,0.00029315,7]
[339062856,1727185877424,-3188.19,0.00029315,7]
[339062857,1727185877434,-553.38536945,0.00029315,7]
[339062858,1727185877444,-525.278445,0.00029315,7]
[339062859,1727185877454,-1600.85,0.00029315,7]
[339062860,1727185877467,-1028.41,0.00029315,7]
[339062861,1727185877477,-151.0,0.00029315,7]
[339062862,1727185877487,-500.0,0.00029315,7]
[339062863,1727185877497,-1081.35,0.00029315,7]
[339062864,1727185877506,-500.0,0.00029315,7]
[339062865,1727185877515,-151.0,0.00029315,7]
[339062866,1727185877525,-500.0,0.00029315,7]
[339062867,1727185877536,-500.0,0.00029315,7]
[339062868,1727185877546,-755.32,0.00029315,7]
[339062869,1727185877555,-565.286814,0.00029315,7]
[339062870,1727185877565,-500.0,0.00029315,7]
[339062871,1727185877574,-500.0,0.00029315,7]
[339062872,1727185877583,-430.058416,0.00029315,7]
[339062873,1727185877592,-518.85,0.00029315,7]
[339062874,1727185877602,-565.286814,0.00029315,7]
[339062875,1727185877612,-581.99853995,0.00029315,7]
[339062876,1727185877622,-430.058416,0.00029315,7]
[339062877,1727185877632,-537.38,0.00029315,7]
[339062878,1727185877641,-500.0,0.00029315,7]
[339062879,1727185877651,-500.0,0.00029315,7]
[339062880,1727185877660,-1428.87,0.00029315,7]
[339062881,1727185877670,-281.27222625,0.00029315,7]
[339062882,1727185877681,-303.29371622,0.00029315,7]
[339062883,1727185877690,-500.0,0.00029315,7]
[339062884,1727185877700,-719.56,0.00029315,7]
[339062885,1727185877711,-894.35,0.00029315,7]
[339062886,1727185877722,-252.68,0.00029315,7]
[339062887,1727185877733,-500.0,0.00029315,7]
[339062888,1727185877742,-835.58,0.00029315,7]
[339062889,1727185877752,-689.75,0.00029315,7]
[339062890,1727185877762,-426.315147,0.00029315,7]
[339062891,1727185877771,-500.0,0.00029315,7]
[339062892,1727185877781,-151.0,0.00029315,7]
[339062893,1727185877792,-1344.762998,0.00029315,7]
[339062894,1727185877802,-500.0,0.00029315,7]
[339062895,1727185877813,-426.315147,0.00029315,7]
[339062896,1727185877823,-151.0,0.00029315,7]
[339062897,1727185877833,-1344.762998,0.00029315,7]
[339062898,1727185877843,-671.66,0.00029315,7]
[339062899,1727185877853,-500.0,0.00029315,7]
[339062900,1727185877863,-500.0,0.00029315,7]
[339062901,1727185877873,-1570.3,0.00029315,7]
[339062902,1727185877883,-500.0,0.00029315,7]
[339062903,1727185877892,-929.8,0.00029315,7]
[339062904,1727185877901,-825.571215,0.00029315,7]
[339062905,1727185877910,-825.571215,0.00029315,7]
[339062906,1727185877920,-586.32,0.00029315,7]
[339062907,1727185877929,-331.266376,0.00029315,7]
[339062908,1727185877938,-500.0,0.00029315,7]
[339062909,1727185877951,-978.1,0.00029315,7]
[339062910,1727185877961,-331.266376,0.00029315,7]
[339062911,1727185877971,-240.90618,0.00029315,7]
[339062912,1727185877980,-500.0,0.00029315,7]
[339062913,1727185877990,-240.90618,0.00029315,7]
[339062914,1727185877999,-528.17,0.00029315,7]
[339062915,1727185878009,-500.0,0.00029315,7]
[339062916,1727185878018,-500.0,0.00029315,7]
[339062917,1727185878028,-500.0,0.00029315,7]
[339062918,1727185878039,-500.0,0.00029315,7]
[339062919,1727185878049,-981.83,0.00029315,7]
[339062920,1727185878059,-703.98,0.00029315,7]
[339062921,1727185878070,-500.0,0.00029315,7]
[339062922,1727185878079,-500.0,0.00029315,7]
[339062923,1727185878089,-564.57,0.00029315,7]
[339062924,1727185878099,-688.17,0.00029315,7]
[339062925,1727185878109,-1121.809827,0.00029315,7]
[339062926,1727185878119,-647.27,0.00029315,7]
[339062927,1727185878128,-500.0,0.00029315,7]
[339062928,1727185878137,-500.0,0.00029315,7]
[339062929,1727185878147,-1121.809827,0.00029315,7]
[339062930,1727185878157,-1043.980229,0.00029315,7]
[339062931,1727185878168,-500.0,0.00029315,7]
[339062932,1727185878178,-1043.980229,0.00029315,7]
[339062933,1727185878188,-500.0,0.00029315,7]
[339062934,1727185878198,-500.0,0.00029315,7]
[339062935,1727185878207,-500.0,0.00029315,7]
[339062936,1727185878216,-500.0,0.00029315,7]
[339062937,1727185878228,-500.0,0.00029315,7]
[339062938,1727185878241,-10.46855873,0.00029315,7]
[339062939,1727185878872,-151.0,0.00026797,7]
[339062940,1727185878883,-151.0,0.00027,7]
[339062941,1727185878892,-151.0,0.00027397,7]
[339062942,1727185878902,-151.0,0.00027671,7]
[339062943,1727185878912,-151.0,0.00027671,7]
[339062944,1727185878921,-151.0,0.00027945,7]
[339062945,1727185878931,-489.53144127,0.00029315,7]
[339062946,1727185878941,-500.0,0.00029315,7]
[339062947,1727185878951,-902.91,0.00029315,7]
[339062948,1727185878961,-151.0,0.00029315,7]
[339062949,1727185878971,-500.0,0.00029315,7]
[339062950,1727185878981,-561.92,0.00029315,7]
[339062951,1727185878991,-500.0,0.00029315,7]
[339062952,1727185879001,-541.31,0.00029315,7]
[339062953,1727185879010,-500.0,0.00029315,7]
[339062954,1727185879020,-302.59164954,0.00029315,7]
[339062955,1727185879029,-1788.93,0.00029315,7]
[339062956,1727185879040,-500.0,0.00029315,7]
[339062957,1727185879050,-500.0,0.00029315,7]
[339062958,1727185879059,-500.0,0.00029315,7]
[339062959,1727185879069,-662.69,0.00029315,7]
[339062960,1727185879079,-371.286522,0.00029315,7]
[339062961,1727185879089,-500.0,0.00029315,7]
[339062962,1727185879099,-500.0,0.00029315,7]
[339062963,1727185879108,-500.0,0.00029315,7]
[339062964,1727185879118,-500.0,0.00029315,7]
[339062965,1727185879127,-500.0,0.00029315,7]
[339062966,1727185879137,-371.286522,0.00029315,7]
[339062967,1727185879146,-1884.85,0.00029315,7]
[339062968,1727185879156,-190.876674,0.00029315,7]
[339062969,1727185879165,-500.0,0.00029315,7]
[339062970,1727185879174,-500.0,0.00029315,7]
[339062971,1727185879184,-495.53108,0.00029315,7]
[339062972,1727185879193,-500.0,0.00029315,7]
[339062973,1727185879203,-500.0,0.00029315,7]
[339062974,1727185879213,-190.876674,0.00029315,7]
[339062975,1727185879223,-495.53108,0.00029315,7]
[339062976,1727185879233,-491.6980926,0.00029315,7]
[339062977,1727185879243,-500.0,0.00029315,7]
[339062978,1727185879254,-500.0,0.00029315,7]
[339062979,1727185879263,-500.0,0.00029315,7]
[339062980,1727185879272,-500.0,0.00029315,7]
[339062981,1727185879282,-500.0,0.00029315,7]
[339062982,1727185879294,-500.0,0.00029315,7]
[339062983,1727185879305,-500.0,0.00029315,7]
[339062984,1727185879315,-563.81,0.00029315,7]
[339062985,1727185879325,-637.77,0.00029315,7]
[339062986,1727185879334,-500.0,0.00029315,7]
[339062987,1727185879345,-165.32706893,0.00029315,7]
[339062988,1727185879357,-1161.23088,0.00029315,7]
[339062989,1727185879366,-325.818599,0.00029315,7]
[339062990,1727185879376,-166.20192881,0.00029315,7]
[339062991,1727185879385,-1161.23088,0.00029315,7]
[339062992,1727185879394,-838.89,0.00029315,7]
[339062993,1727185879403,-325.818599,0.00029315,7]
[339062994,1727185879412,-500.0,0.00029315,7]
[339062995,1727185879422,-928.12,0.00029315,7]
[339062996,1727185879431,-500.0,0.00029315,7]
[339062997,1727185879440,-588.89,0.00029315,7]
[339062998,1727185879450,-1019.76,0.00029315,7]
[339062999,1727185879459,-500.0,0.00029315,7]
[339063000,1727185879468,-701.67,0.00029315,7]
[339063001,1727185879478,-500.0,0.00029315,7]
[339063002,1727185879487,-2500.0,0.00029356,3]
[339063003,1727185879497,-377.8001345,0.00029397,2]
[339063004,1727185879506,-150.67504188,0.00029452,2]
[339063005,1727185879516,-580.0,0.000295,120]
[339063006,1727185879526,-6692.3739639,0.00029557,2]
[339063007,1727185879537,-500.0,0.00029589,7]
[339063008,1727185879547,-500.0,0.00029589,7]
[339063009,1727185879558,-786.36,0.00029589,7]
[339063010,1727185879568,-329.53314204,0.00029589,7]
[339063011,1727185879577,-822.91,0.00029589,7]
[339063012,1727185879586,-664.95,0.00029589,7]
[339063013,1727185879595,-720.13,0.00029589,7]
[339063014,1727185879604,-637.03,0.00029589,7]
[339063015,1727185879614,-856.26,0.00029589,7]
[339063016,1727185879623,-500.0,0.00029589,7]
[339063017,1727185879632,-500.0,0.00029589,7]
[339063018,1727185879641,-528.4,0.00029589,7]
[339063019,1727185879652,-500.0,0.00029589,7]
[339063020,1727185879662,-500.0,0.00029589,7]
[339063021,1727185879671,-500.0,0.00029589,7]
[339063022,1727185879680,-201.09304416,0.00029589,7]
[339063023,1727185879689,-323.68878388,0.00029589,7]
[339063024,1727185879698,-500.0,0.00029589,7]
[339063025,1727185879707,-550.65,0.00029589,7]
[339063026,1727185879716,-500.0,0.00029589,7]
[339063027,1727185879726,-500.0,0.00029589,7]
[339063028,1727185879736,-500.0,0.00029589,2]
[339063029,1727185879746,-500.0,0.00029589,7]
[339063030,1727185879755,-500.0,0.00029589,7]
[339063031,1727185879765,-500.0,0.00029589,7]
[339063032,1727185879774,-574.18,0.00029589,7]
[339063033,1727185879783,-575.35295861,0.00029589,7]
[339063034,1727185879793,-500.0,0.00029589,7]
[339063035,1727185879803,-536.26,0.00029589,7]
[339063036,1727185879812,-500.0,0.00029589,7]
[339063037,1727185879822,-779.29,0.00029589,7]
[339063038,1727185879831,-500.0,0.00029589,7]
[339063039,1727185879840,-500.0,0.00029589,7]
[339063040,1727185879849,-500.0,0.00029589,7]
[339063041,1727185879858,-981.24,0.00029589,7]
[339063042,1727185879867,-500.0,0.00029589,7]
[339063043,1727185879876,-500.0,0.00029589,7]
[339063044,1727185879886,-500.0,0.00029589,7]
[339063045,1727185879896,-668.98,0.00029589,7]
[339063046,1727185879905,-667.57,0.00029589,7]
[339063047,1727185879914,-1224.72,0.00029589,7]
[339063048,1727185879923,-606.77973577,0.00029589,7]
[339063049,1727185879933,-846.35,0.00029589,7]
[339063050,1727185879942,-523.09,0.00029589,7]
[339063051,1727185879952,-432.52846698,0.00029589,7]
[339063052,1727185879962,-832.28,0.00029589,2]
[339063053,1727185879971,-539.78,0.00029589,7]
[339063054,1727185879980,-500.0,0.00029589,7]
[339063055,1727185879990,-500.0,0.00029589,7]
[339063056,1727185879999,-500.0,0.00029589,7]
[339063057,1727185880009,-834.7,0.00029589,7]
[339063058,1727185880018,-882.2,0.00029589,7]
[339063059,1727185880028,-700.78,0.00029589,7]
[339063060,1727185880038,-923.88,0.00029589,7]
[339063061,1727185880047,-500.0,0.00029589,7]
[339063062,1727185880057,-359.73919734,0.00029589,7]
[339063063,1727185880066,-500.0,0.00029589,7]
[339063064,1727185880075,-500.0,0.00029589,7]
[339063065,1727185880084,-500.0,0.00029589,7]
[339063066,1727185880094,-500.0,0.00029589,7]
[339063067,1727185880103,-699.55,0.00029589,7]
[339063068,1727185880112,-500.0,0.00029589,7]
[339063069,1727185880121,-500.0,0.00029589,2]
[339063070,1727185880130,-500.0,0.00029589,7]
[339063071,1727185880139,-949.76,0.00029589,7]
[339063072,1727185880148,-500.0,0.00029589,7]
[339063073,1727185880157,-500.0,0.00029589,7]
[339063074,1727185880166,-603.71,0.00029589,7]
[339063075,1727185880176,-500.0,0.00029589,7]
[339063076,1727185880186,-683.94,0.00029589,7]
[339063077,1727185880195,-1000.0,0.00029589,7]
[339063078,1727185880205,-940.34,0.00029589,7]
[339063079,1727185880214,-500.0,0.00029589,7]
[339063080,1727185880223,-797.23,0.00029589,7]
[339063081,1727185880232,-354.51,0.00029589,7]
[339063082,1727185880242,-523.77,0.00029589,7]
[339063083,1727185880252,-500.0,0.00029589,7]
[339063084,1727185880261,-634.21,0.00029589,7]
[339063085,1727185880270,-500.0,0.00029589,7]
[339063086,1727185880280,-500.0,0.00029589,7]
[339063087,1727185880290,-500.0,0.00029589,7]
[339063088,1727185880303,-500.0,0.00029589,7]
[339063089,1727185880313,-500.0,0.00029589,7]
[339063090,1727185880323,-500.0,0.00029589,7]
[339063091,1727185880333,-774.11,0.00029589,7]
[339063092,1727185880343,-500.0,0.00029589,7]
[339063093,1727185880354,-500.0,0.00029589,7]
[339063094,1727185880364,-532.41,0.00029589,7]
[339063095,1727185880373,-519.04,0.00029589,7]
[339063096,1727185880382,-994.06,0.00029589,7]
[339063097,1727185880392,-751.74,0.00029589,7]
[339063098,1727185880403,-641.08,0.00029589,7]
[339063099,1727185880413,-810.17,0.00029589,2]
[339063100,1727185880422,-922.97,0.00029589,7]
[339063101,1727185880432,-500.0,0.00029589,7]
[339063102,1727185880441,-1474.2,0.00029589,7]
[339063103,1727185880451,-675.51,0.00029589,7]
[339063104,1727185880460,-930.14,0.00029589,7]
[339063105,1727185880469,-623.3,0.00029589,7]
[339063106,1727185880479,-500.0,0.00029589,7]
[339063107,1727185880488,-500.0,0.00029589,7]
[339063108,1727185880498,-3188.19,0.00029589,7]
[339063109,1727185880507,-1600.85,0.00029589,7]
[339063110,1727185880516,-1028.41,0.00029589,7]
[339063111,1727185880525,-500.0,0.00029589,7]
[339063112,1727185880537,-1081.35,0.00029589,7]
[339063113,1727185880546,-228.13159095,0.00029589,7]
[339063114,1727185880556,-500.0,0.00029589,7]
[339063115,1727185880565,-437.57103746,0.00029589,7]
[339063116,1727185880574,-755.32,0.00029589,7]
[339063117,1727185880583,-500.0,0.00029589,7]
[339063118,1727185880592,-500.0,0.00029589,7]
[339063119,1727185880601,-518.85,0.00029589,7]
[339063120,1727185880610,-537.38,0.00029589,7]
[339063121,1727185880619,-500.0,0.00029589,7]
[339063122,1727185880628,-500.0,0.00029589,7]
[339063123,1727185880639,-1428.87,0.00029589,7]
[339063124,1727185880648,-500.0,0.00029589,7]
[339063125,1727185880658,-894.35,0.00029589,7]
[339063126,1727185880667,-719.56,0.00029589,7]
[339063127,1727185880676,-252.68,0.00029589,7]
[339063128,1727185880685,-500.0,0.00029589,7]
[339063129,1727185880694,-835.58,0.00029589,7]
[339063130,1727185880703,-689.75,0.00029589,7]
[339063131,1727185880712,-500.0,0.00029589,7]
[339063132,1727185880721,-500.0,0.00029589,7]
[339063133,1727185880731,-671.66,0.00029589,7]
[339063134,1727185880740,-500.0,0.00029589,7]
[339063135,1727185880749,-501.3398697,0.00029589,7]
[339063136,1727185880759,-1570.3,0.00029589,7]
[339063137,1727185880769,-500.0,0.00029589,7]
[339063138,1727185880778,-929.8,0.00029589,7]
[339063139,1727185880789,-586.32,0.00029589,7]
[339063140,1727185880798,-500.0,0.00029589,7]
[339063141,1727185880808,-978.1,0.00029589,7]
[339063142,1727185880817,-500.0,0.00029589,7]
[339063143,1727185880826,-500.0,0.00029589,7]
[339063144,1727185880835,-528.17,0.00029589,7]
[339063145,1727185880844,-646.97269455,0.00029589,7]
[339063146,1727185880853,-211.86740205,0.00029589,7]
[339063147,1727185880863,-500.0,0.00029589,7]
[339063148,1727185880873,-981.83,0.00029589,7]
[339063149,1727185880883,-703.98,0.00029589,7]
[339063150,1727185880892,-500.0,0.00029589,7]
[339063151,1727185880902,-500.0,0.00029589,7]
[339063152,1727185880911,-564.57,0.00029589,7]
[339063153,1727185880920,-688.17,0.00029589,7]
[339063154,1727185880930,-647.27,0.00029589,7]
[339063155,1727185880940,-500.0,0.00029589,7]
[339063156,1727185880949,-500.0,0.00029589,7]
[339063157,1727185880959,-500.0,0.00029589,7]
[339063158,1727185880969,-500.0,0.00029589,7]
[339063159,1727185880978,-500.0,0.00029589,7]
[339063160,1727185880988,-500.0,0.00029589,7]
[339063161,1727185881112,-500.0,0.00029589,7]
[339063162,1727185881123,-500.0,0.00029589,7]
[339063163,1727185881132,-500.0,0.00029589,7]
[339063164,1727185881143,-500.0,0.00029589,7]
[339063165,1727185881154,-902.91,0.00029589,7]
[339063166,1727185881165,-500.0,0.00029589,7]
[339063167,1727185881174,-561.92,0.00029589,7]
[339063168,1727185881183,-500.0,0.00029589,7]
[339063169,1727185881193,-541.31,0.00029589,7]
[339063170,1727185881204,-500.0,0.00029589,7]
[339063171,1727185881216,-1788.93,0.00029589,7]
[339063172,1727185881226,-500.0,0.00029589,7]
[339063173,1727185881237,-500.0,0.00029589,7]
[339063174,1727185881248,-500.0,0.00029589,7]
[339063175,1727185881259,-662.69,0.00029589,7]
[339063176,1727185881269,-500.0,0.00029589,7]
[339063177,1727185881279,-500.0,0.00029589,7]
[339063178,1727185881289,-500.0,0.00029589,7]
[339063179,1727185881298,-500.0,0.00029589,7]
[339063180,1727185881308,-500.0,0.00029589,7]
[339063181,1727185881317,-1884.85,0.00029589,7]
[339063182,1727185881327,-500.0,0.00029589,7]
[339063183,1727185881336,-249.43879626,0.00029589,7]
[339063184,1727185881345,-500.0,0.00029589,7]
[339063185,1727185881357,-500.0,0.00029589,7]
[339063186,1727185881366,-500.0,0.00029589,7]
[339063187,1727185881375,-500.0,0.00029589,7]
[339063188,1727185881384,-275.96998487,0.00029589,7]
[339063189,1727185881393,-371.75421971,0.00029589,7]